Workbook

Sheet 2021见习岗
A1: 附表：路南各校见习岗岗位情况及各校联系人
A2: 单位名称 | B2: 需求岗位数 | C2: 备注 | D2: 联系人 | E2: 电话
A3: 唐山市第五中学 | B3: 6 | C3: 语1数1英1政1地2 | D3: 刘校长 | E3: 15102522158
A4: 唐山市路南区职业技术学校 | B4: 12 | C4: 语文2，数学2，英语2，地理2，历史1，政治1，计算机1，美术1 | D4: 张主任 | E4: 13731522037
A5: 唐山市第四中学校 | B5: 7 | C5: 体育1，生物1，化学1，物理1，数学2，英语1 | D5: 彭主任 | E5: 13313250887
A6: 唐山市第九中学 | B6: 1 | C6: 体育 | D6: 张校长 | E6: 13315559136
A7: 唐山市开滦第十中学 | B7: 1 | C7: 音乐 | D7: 唐主任 | E7: 13832897092
A8: 唐山市友谊中学 | B8: 2 | C8: 语文、数学 | D8: 杨书记 | E8: 13011518700
A9: 唐山市第二十六中学 | B9: 2 | C9: 语文、英语 | D9: 赵主任 | E9: 18031588099
A10: 唐山市路南区稻地镇中学 | B10: 4 | C10: 历史1，生物1，体育1，英语1 | D10: 张校长 | E10: 13832835375
A11: 唐山市路南区培智学校 | B11: 2 | C11: 特殊教育或小学教育 | D11: 赵校长 | E11: 13933423496
A12: 唐山市路南区文北小学 | B12: 2 | C12: 班主任 | D12: 张校长 | E12: 15530538516
A13: 唐山市路南区联合村小学校 | B13: 6 | C13: 英语1、美术1、幼教4 | D13: 陈主任 | E13: 15100561136
A14: 唐山市路南区胜利路小学校 | B14: 2 | D14: 季校长 | E14: 15100560873
A15: 唐山市路南区东新街小学校 | B15: 4 | D15: 关校长 | E15: 15100562024
A16: 唐山市路南区福庄小学 | B16: 1 | C16: 体育 | D16: 董校长 | E16: 15633366077
A17: 唐山市路南区南厂小学 | B17: 4 | D17: 韩校长 | E17: 15100560687
A18: 唐山市路南区万达小学 | B18: 8 | C18: 英语1，体育3，数学1、班主任1人，微机1人，美术1人 | D18: 朱主任 | E18: 15081536235
A19: 唐山市路南区实验小学 | B19: 20 | C19: 体育5人，科学1人，音乐1人，科任7人。红堡校区：科学1人，体育2人，道法1人，美术2人 | D19: 陆书记 | E19: 15100562003
A20: 唐山市路南区双新小学 | B20: 10 | C20: 班主任1，美术2，体育1，幼教6 | D20: 董主任 | E20: 13031570782
A21: 唐山市路南区新华西道小学 | B21: 7 | C21: 班主任4、附幼3 | D21: 马校长 | E21: 13383252302
A22: 唐山市路南区友谊里小学 | B22: 2 | C22: 班主任、计算机 | D22: 张校长 | E22: 18330588855
A23: 唐山市路南区燕京小学 | B23: 8 | C23: 英语2微机2科学1音乐1班主任2 | D23: 赵校长 | E23: 13933356565
A24: 唐山市雷锋小学 | B24: 3 | D24: 孙校长 | E24: 13933385353
A25: 唐山市路南区第二实验小学 | B25: 7 | C25: 含附幼5 | D25: 陈校长（小学）；陈老师（附幼） | E25: 15100561972；15633627061
A26: 唐山市路南区实验小学南湖分校 | B26: 15 | D26: 王校长 | E26: 13383252600
A27: 唐山市路南区南湖小学 | B27: 6 | D27: 王校长；高主任 | E27: 18931572837；13313253003
A28: 唐山市第二幼儿园 | B28: 6 | D28: 柳书记 | E28: 15176526667
A29: 唐山市第三幼儿园 | B29: 5 | D29: 赫园长 | E29: 15076529677
A30: 唐山市侯边庄小学 | B30: 1 | C30: 附幼 | D30: 李主任 | E30: 13832562345
A31: 唐山市老谢庄小学 | B31: 2 | C31: 含附幼1 | D31: 孙校长 | E31: 15100561041
A32: 唐山市女织寨小学 | B32: 3 | C32: 英语、幼教 | D32: 张校长 | E32: 15100561197
A33: 唐山市路南区郑家庄小学 | B33: 4 | D33: 孟主任 | E33: 15100561083
A34: 唐山市路南区稻地镇边庄子小学 | B34: 5 | D34: 于校长 | E34: 13463527705
A35: 唐山市路南区稻地镇刘唐保小学 | B35: 3 | D35: 刘校长 | E35: 13373596318
A36: 唐山市路南区稻地镇稻地小学 | B36: 2 | C36: 音乐、体育 | D36: 刘校长 | E36: 15369518819
A37: 唐山市路南区稻地镇第二小学 | B37: 2 | D37: 郑校长 | E37: 13633250094
A38: 唐山市路南区稻地镇范庄小学 | B38: 7 | D38: 王校长 | E38: 13785504573
A39: 唐山市路南区稻地中心幼儿园 | B39: 5 | D39: 王园长 | E39: 13393152685
A40: 唐山市路南区稻地镇刘唐保幼儿园 | B40: 4 | D40: 张园长 | E40: 18633300065

Sheet 教育系统人员情况表（0125算师生比） (hidden)
A1: 教育系统人员情况表
G2: 2021.1.25
A3: 单位名称 | B3: 核定编制数 | C3: 在编数 | D3: 人事代理 | E3: 稻地聘用制 | F3: 在编、人事代理、聘用制合计 | G3: 学生数 | H3: 应配教师数（师生比：小学1:19，初中1:13.5，高中1:12.5，幼儿园1:6） | I3: 备注
A4: 唐山市第五中学 | B4: 113 | C4: 112 | D4: 12 | F4: =C4+D4+E4 -> 124 | G4: 934 | H4: =G4/12.5 -> 74.7
A5: 唐山市路南区职业技术学校 | B5: 57 | C5: 52 | D5: 2 | F5: =C5+D5+E5 -> 54 | G5: 453
A6: 唐山市第四中学校 | B6: 103 | C6: 97 | D6: 5 | F6: 102 | G6: 1240 | H6: =G6/13.5 -> 91.9
A7: 唐山市第九中学 | B7: 186 | C7: 185 | D7: 23 | F7: 208 | G7: 2259 | H7: =G7/13.5 -> 167.3
A8: 唐山市开滦第十中学 | B8: 125 | C8: 120 | D8: 18 | F8: 138 | G8: 1570 | H8: 116.3
A9: 唐山市友谊中学 | B9: 139 | C9: 138 | D9: 23 | F9: 161 | G9: 2563 | H9: 189.9
A10: 唐山市第二十六中学 | B10: 165 | C10: 162 | D10: 15 | F10: 177 | G10: 1824 | H10: 135.1
A11: 唐山市第二十六中学分校 | B11: 4 | C11: 4 | F11: 4 | G11: 0
A12: 唐山市第三十九中学 | B12: 29 | C12: 29 | D12: 1 | F12: 30 | G12: 0
A13: 唐山市路南区稻地镇中学 | B13: 63 | C13: 63 | D13: 1 | E13: 5 | F13: 69 | G13: 740 | H13: 54.8
A14: 二中实验学校（39中） | B14: 20 | C14: 17 | F14: 17
A15: 初中合计 | B15: =SUM(B6:B14) -> 834 | C15: =SUM(C6:C14) -> 815 | D15: =SUM(D6:D14) -> 86 | E15: 5 | F15: 906 | G15: 10196 | H15: 755.3
A16: 唐山市路南区成人教育学校 | B16: 33 | C16: 32 | D16: 1 | F16: 33
A17: 唐山市路南区教师进修学校 | B17: 21 | C17: 20 | D17: 1 | F17: 21 | G17: 0
A18: 唐山市路南区中小学劳动教育中心 | B18: 20 | C18: 20 | D18: 1 | F18: 21 | G18: 0
A19: 唐山市路南区培智学校 | B19: 22 | C19: 19 | F19: 19 | G19: 73
A20: 唐山市路南区文北小学 | B20: 60 | C20: 56 | D20: 3 | F20: 59 | G20: 1192 | H20: =G20/19 -> 62.7
A21: 唐山市路南区联合村小学校 | B21: 34 | C21: 31 | D21: 2 | F21: 33 | G21: 772 | H21: =G21/19 -> 40.6
A22: 唐山市路南区菜市小学校 | B22: 13 | C22: 12 | F22: 12 | G22: 0
A23: 唐山市路南区胜利路小学校 | B23: 29 | C23: 27 | D23: 2 | F23: 29 | G23: 767 | H23: 40.4
A24: 唐山市路南区东新街小学校 | B24: 30 | C24: 29 | D24: 3 | F24: 32 | G24: 667 | H24: 35.1
A25: 唐山市路南区福庄小学 | B25: 18 | C25: 18 | D25: 2 | F25: 20 | G25: 295 | H25: 15.5
A26: 唐山市路南区铁路第二小学 | B26: 15 | C26: 14 | F26: 14 | G26: 0
A27: 唐山市路南区南厂小学 | B27: 34 | C27: 31 | D27: 1 | F27: 32 | G27: 541 | H27: 28.5
A28: 唐山市路南区万达小学 | B28: 41 | C28: 39 | D28: 3 | F28: 42 | G28: 1150 | H28: 60.5
A29: 唐山市路南区实验小学 | B29: 83 | C29: 80 | D29: 6 | F29: 86 | G29: 2411 | H29: 126.9 | I29: 含金岸红堡309个学生
A30: 唐山市路南区双新小学 | B30: 39 | C30: 38 | D30: 3 | E30: 0 | F30: 41 | G30: 771 | H30: 40.6
A31: 唐山市路南区新华楼小学 | B31: 27 | C31: 16 | F31: 16 | G31: 0
A32: 唐山市路南区新华西道小学 | B32: 35 | C32: 34 | D32: 3 | F32: 37 | G32: 503 | H32: 26.5
A33: 唐山市路南区友谊里小学 | B33: 49 | C33: 49 | D33: 4 | F33: 53 | G33: 1006 | H33: 52.9
A34: 唐山市路南区燕京小学 | B34: 61 | C34: 61 | D34: 3 | F34: 64 | G34: 1733 | H34: 91.2
A35: 唐山市雷锋小学 | B35: 39 | C35: 39 | D35: 3 | F35: 42 | G35: 866 | H35: 45.6
A36: 唐山市路南区第二实验小学 | B36: 69 | C36: 64 | D36: 5 | F36: 69 | G36: 1468 | H36: 77.3
A37: 唐山市路南区实验小学南湖分校 | B37: 47 | C37: 44 | D37: 1 | F37: 45 | G37: 1454 | H37: 76.5
A38: 唐山市路南区南湖小学 | B38: 50 | C38: 44 | D38: 3 | F38: 47 | G38: 1141 | H38: 60.1
A39: 市区小学合计 | B39: =SUM(B20:B38) -> 773 | C39: =SUM(C20:C38) -> 726 | D39: 47 | E39: 0 | F39: 773 | G39: 16737 | H39: 880.9
A40: 唐山市第二幼儿园 | B40: 41 | C40: 39 | D40: 5 | F40: =C40+D40+E40 -> 44 | G40: 355 | H40: =G40/6 -> 59.2
A41: 唐山市第三幼儿园 | B41: 19 | C41: 18 | D41: 0 | F41: 18 | G41: 127 | H41: =G41/6 -> 21.2
A42: 唐山市路南区博艺幼儿园 | B42: 9 | C42: 9 | D42: 1 | F42: 10 | G42: 0
A43: 市区幼儿园 | B43: =SUM(B40:B42) -> 69 | C43: =SUM(C40:C42) -> 66 | D43: =SUM(D40:D42) -> 6 | F43: 72 | G43: 482 | H43: 80.3
A44: 唐山市侯边庄小学 | B44: 30 | C44: 29 | D44: 3 | F44: =C44+D44+E44 -> 32 | G44: 431 | H44: =G44/19 -> 22.7
A45: 唐山市老谢庄小学 | B45: 26 | C45: 24 | D45: 1 | F45: =C45+D45+E45 -> 25 | G45: 489 | H45: =G45/19 -> 25.7
A46: 唐山市路南区郑家庄小学 | B46: 26 | C46: 24 | D46: 2 | F46: 26 | G46: 489 | H46: 25.7
A47: 唐山市女织寨小学 | B47: 14 | C47: 14 | D47: 1 | F47: 15 | G47: 157 | H47: 8.3
A48: 唐山市西礼小学 | B48: 16 | C48: 15 | F48: 15 | G48: 0
A49: 唐山市路南区女织寨乡教育组 | B49: 6 | C49: 6 | F49: 6 | G49: 0
A50: 唐山市路南区稻地镇边庄子小学 | B50: 12 | C50: 12 | D50: 3 | E50: 2 | F50: 17 | G50: 234 | H50: 12.3
A51: 唐山市路南区稻地镇刘唐保小学 | B51: 12 | C51: 11 | D51: 2 | E51: 8 | F51: 21 | G51: 276 | H51: 14.5
A52: 唐山市路南区稻地镇稻地小学 | B52: 25 | C52: 24 | D52: 5 | E52: 15 | F52: 44 | G52: 719 | H52: 37.8
A53: 唐山市路南区稻地镇第二小学 | B53: 12 | C53: 11 | E53: 1 | F53: 12 | G53: 130 | H53: 6.8
A54: 唐山市路南区稻地镇范庄小学 | B54: 10 | C54: 9 | E54: 1 | F54: 10 | G54: 186 | H54: 9.8
A55: 唐山市路南区稻地中心幼儿园 | B55: 7 | C55: 7 | F55: 7 | G55: 167 | H55: =G55/6 -> 27.8
A56: 唐山市路南区稻地镇刘唐保幼儿园 | B56: 7 | C56: 7 | E56: 1 | F56: 8 | G56: 150 | H56: =G56/6 -> 25.0
A57: 唐山市路南区稻地镇中心校 | B57: 7 | C57: 7 | F57: 7 | G57: 0
A58: 稻地镇成人学校 | B58: 6 | C58: 6 | F58: 6 | G58: 0
A59: 农村学校（不含中学） | B59: =SUM(B44:B58) -> 216 | C59: =SUM(C44:C58) -> 206 | D59: =SUM(D44:D58) -> 17 | E59: 28 | F59: 251 | G59: 3428 | H59: 216.6
A60: 合计 | B60: =B4+B5+B15+B16+B17+B18+B19+B39+B43+B59 -> 2158 | C60: =C59+C43+C39+C19+C18+C17+C16+C15+C5+C4 -> 2068 | D60: 173 | E60: 33 | F60: 2274 | G60: 32303

Sheet 教育系统人员情况表（师生比、班师比0305） (新) (hidden)
B1: 教育系统教师配备情况表
I2: 2021.3.5
A3: 序号 | B3: 单位名称 | C3: 核定编制数 | D3: 在编数 | E3: 拆迁校借入 | F3: 人事代理 | G3: 稻地聘用制及校聘 | H3: 在岗（在编、人事代理、聘用制、拆迁校借入）合计 | I3: 师生比 | M3: 班师比 | Q3: 备注
I4: 学生数 | J4: 现师生比 | K4: 按系统标准应配教师数 | L4: 按系统标准应配教师数 | M4: 班数 | N4: 现班师比 | O4: 按系统标准应配教师数 | P4: 按系统标准应配教师数
A5: 1 | B5: 唐山市第五中学 | C5: 113 | D5: 112 | F5: 12 | H5: =SUM(D5:G5) -> 124 | I5: 897 | J5: =I5/H5 -> 7.23 | M5: 18 | N5: =H5/M5 -> 6.89
A6: 2 | B6: 唐山市路南区职业技术学校 | C6: 57 | D6: 52 | F6: 2 | H6: =SUM(D6:G6) -> 54 | I6: 493 | J6: =I6/H6 -> 9.13 | M6: 20 | N6: =H6/M6 -> 2.70
A7: 3 | B7: 唐山市第四中学校 | C7: 103 | D7: 96 | F7: 5 | H7: 101 | I7: 1240 | J7: 12.28 | K7: =I7/10.66 -> 116.32 | L7: 117 | M7: 24 | N7: =H7/M7 -> 4.21 | O7: =M7*4.78 -> 114.72 | P7: 115
A8: 4 | B8: 唐山市第九中学 | C8: 186 | D8: 184 | F8: 23 | H8: 207 | I8: 2218 | J8: 10.71 | K8: =I8/10.66 -> 208.07 | L8: 209 | M8: 44 | N8: 4.70 | O8: =M8*4.78 -> 210.32 | P8: 211
A9: 5 | B9: 唐山市开滦第十中学 | C9: 125 | D9: 120 | E9: 21 | F9: 18 | G9: 5 | H9: =D9+E9+F9+G9 -> 164 | I9: 1570 | J9: 9.57 | K9: 147.28 | L9: 148 | M9: 30 | N9: 5.47 | O9: 143.40 | P9: 144 | Q9: 双向超；含39中21
A10: 6 | B10: 唐山市友谊中学 | C10: 139 | D10: 137 | F10: 23 | G10: 68 | H10: 228 | I10: 2563 | J10: 11.24 | K10: 240.43 | L10: 241 | M10: 48 | N10: 4.75 | O10: 229.44 | P10: 230
A11: 7 | B11: 唐山市第二十六中学 | C11: 165 | D11: 160 | E11: 3 | F11: 15 | H11: 178 | I11: 1767 | J11: 9.93 | K11: 165.76 | L11: 166 | M11: 36 | N11: 4.94 | O11: 172.08 | P11: 173 | Q11: 双向超；含26分3
A12: 8 | B12: 唐山市路南区稻地镇中学 | C12: 63 | D12: 63 | F12: 1 | G12: 5 | H12: 69 | I12: 740 | J12: 10.72 | K12: 69.42 | L12: 70 | M12: 16 | N12: 4.31 | O12: 76.48 | P12: 77
B13: 初中合计 | C13: =SUM(C7:C12) -> 781 | D13: =SUM(D7:D12) -> 760 | F13: 85 | G13: 78 | H13: =SUM(H7:H12) -> 947 | I13: 10098 | J13: =I13/H13 -> 10.66 | M13: =SUM(M7:M12) -> 198 | N13: 4.78
A14: 9 | B14: 唐山市路南区文北小学 | C14: 60 | D14: 56 | F14: 3 | H14: =SUM(D14:G14) -> 59 | I14: 1192 | J14: =I14/H14 -> 20.20 | K14: =I14/21.84 -> 54.58 | L14: 55 | M14: 24 | N14: 2.46 | O14: =M14*2.2 -> 52.80 | P14: 53 | Q14: 双向超
A15: 10 | B15: 唐山市路南区联合村小学校 | C15: 34 | D15: 31 | F15: 2 | H15: =SUM(D15:G15) -> 33 | I15: 775 | J15: 23.48 | K15: =I15/21.84 -> 35.49 | L15: 36 | M15: 17 | N15: 1.94 | O15: =M15*2.2 -> 37.40 | P15: 38
A16: 11 | B16: 唐山市路南区胜利路小学校 | C16: 29 | D16: 27 | E16: 10 | F16: 2 | H16: 39 | I16: 763 | J16: 19.56 | K16: 34.94 | L16: 35 | M16: 16 | N16: 2.44 | O16: 35.20 | P16: 36 | Q16: 双向超；含菜市10
A17: 12 | B17: 唐山市路南区东新街小学校 | C17: 30 | D17: 29 | F17: 3 | H17: 32 | I17: 670 | J17: 20.94 | K17: 30.68 | L17: 31 | M17: 14 | N17: 2.29 | O17: 30.80 | P17: 31 | Q17: 双向超
A18: 13 | B18: 唐山市路南区福庄小学 | C18: 18 | D18: 18 | E18: 13 | F18: 2 | H18: 33 | I18: 295 | J18: 8.94 | K18: 13.51 | L18: 14 | M18: 9 | N18: 3.67 | O18: 19.80 | P18: 20 | Q18: 双向超；含铁二13
A19: 14 | B19: 唐山市路南区南厂小学 | C19: 34 | D19: 31 | F19: 1 | H19: 32 | I19: 536 | J19: 16.75 | K19: 24.54 | L19: 25 | M19: 12 | N19: 2.67 | O19: 26.40 | P19: 27 | Q19: 双向超
A20: 15 | B20: 唐山市路南区万达小学 | C20: 41 | D20: 39 | F20: 3 | H20: 42 | I20: 1150 | J20: 27.38 | K20: 52.66 | L20: 53 | M20: 24 | N20: 1.75 | O20: 52.80 | P20: 53
A21: 16 | B21: 唐山市路南区实验小学 | C21: 83 | D21: 80 | E21: 14 | F21: 6 | H21: 100 | I21: 2408 | J21: 24.08 | K21: 110.26 | L21: 111 | M21: 48 | N21: 2.08 | O21: 105.60 | P21: 106 | Q21: 含金岸红堡309个学生；含新华楼14
A22: 17 | B22: 唐山市路南区双新小学 | C22: 39 | D22: 38 | F22: 3 | G22: 0 | H22: 41 | I22: 771 | J22: 18.80 | K22: 35.30 | L22: 36 | M22: 17 | N22: 2.41 | O22: 37.40 | P22: 38 | Q22: 双向超
A23: 18 | B23: 唐山市路南区新华西道小学 | C23: 35 | D23: 34 | F23: 3 | H23: 37 | I23: 495 | J23: 13.38 | K23: 22.66 | L23: 23 | M23: 12 | N23: 3.08 | O23: 26.40 | P23: 27 | Q23: 双向超
A24: 19 | B24: 唐山市路南区友谊里小学 | C24: 49 | D24: 49 | F24: 4 | H24: 53 | I24: 1010 | J24: =I24/H24 -> 19.06 | K24: 46.25 | L24: 47 | M24: 23 | N24: 2.30 | O24: 50.60 | P24: 51 | Q24: 双向超
A25: 20 | B25: 唐山市路南区燕京小学 | C25: 61 | D25: 61 | F25: 3 | H25: 64 | I25: 1733 | J25: 27.08 | K25: 79.35 | L25: 80 | M25: 33 | N25: 1.94 | O25: 72.60 | P25: 73
A26: 21 | B26: 唐山市雷锋小学 | C26: 39 | D26: 39 | F26: 3 | H26: 42 | I26: 868 | J26: 20.67 | K26: 39.74 | L26: 40 | M26: 18 | N26: 2.33 | O26: 39.60 | P26: 40 | Q26: 双向超
A27: 22 | B27: 唐山市路南区第二实验小学 | C27: 69 | D27: 64 | F27: 5 | H27: 69 | I27: 1467 | J27: 21.26 | K27: 67.17 | L27: 68 | M27: 30 | N27: 2.30 | O27: 66.00 | P27: 66 | Q27: 双向超
A28: 23 | B28: 唐山市路南区实验小学南湖分校 | C28: 47 | D28: 42 | F28: 1 | H28: 43 | I28: 1454 | J28: 33.81 | K28: 66.58 | L28: 67 | M28: 30 | N28: 1.43 | O28: 66.00 | P28: 66
A29: 24 | B29: 唐山市路南区南湖小学 | C29: 50 | D29: 44 | F29: 3 | H29: 47 | I29: 1141 | J29: 24.28 | K29: 52.24 | L29: 53 | M29: 22 | N29: 2.14 | O29: 48.40 | P29: 49
B30: 市区小学合计 | C30: =SUM(C14:C29) -> 718 | D30: =SUM(D14:D29) -> 682 | F30: 47 | G30: 0 | H30: =SUM(H14:H29) -> 766 | I30: 16728 | J30: 21.84 | M30: =SUM(M14:M29) -> 349 | N30: 2.19
A31: 25 | B31: 唐山市第二幼儿园 | C31: 41 | D31: 39 | F31: 5 | H31: =SUM(D31:G31) -> 44 | I31: 360 | J31: =I31/H31 -> 8.18 | K31: =I31/10.51 -> 34.25 | L31: 53 | M31: 12 | N31: 3.67 | O31: =M31*2.69 -> 32.28 | P31: 33 | Q31: 单项超
A32: 26 | B32: 唐山市第三幼儿园 | C32: 19 | D32: 18 | E32: 1 | F32: 0 | H32: =SUM(D32:G32) -> 19 | I32: 138 | J32: 7.26 | K32: =I32/10.51 -> 13.13 | L32: 20 | M32: 5 | N32: 3.80 | O32: =M32*2.69 -> 13.45 | P32: 14 | Q32: 单项超；含博艺1
A33: 27 | B33: 唐山市路南区稻地中心幼儿园 | C33: 7 | D33: 7 | H33: 7 | I33: 167 | J33: =I33/H33 -> 23.86 | K33: 15.89 | L33: 16 | M33: 6 | N33: =H33/M33 -> 1.17 | O33: 16.14 | P33: 17
A34: 28 | B34: 唐山市路南区稻地镇刘唐保幼儿园 | C34: 7 | D34: 7 | G34: 1 | H34: 8 | I34: 144 | J34: =I34/H34 -> 18.00 | K34: 13.70 | L34: 14 | M34: 6 | N34: =H34/M34 -> 1.33 | O34: 16.14 | P34: 17
B35: 幼儿园 | C35: =SUM(C31:C34) -> 74 | D35: =SUM(D31:D34) -> 71 | F35: 5 | G35: 1 | H35: =SUM(H31:H34) -> 78 | I35: =SUM(I31:I34) -> 809 | J35: 10.37 | M35: =SUM(M31:M34) -> 29 | N35: =H35/M35 -> 2.69
A36: 29 | B36: 唐山市侯边庄小学 | C36: 30 | D36: 29 | F36: 3 | H36: =SUM(D36:G36) -> 32 | I36: 425 | J36: =I36/H36 -> 13.28 | K36: =I36/14.55 -> 29.21 | L36: 30 | M36: 12 | N36: 2.67 | O36: =M36*2.34 -> 28.08 | P36: 29 | Q36: 双向超
A37: 30 | B37: 唐山市老谢庄小学 | C37: 26 | D37: 24 | E37: 6 | F37: 1 | H37: =SUM(D37:G37) -> 31 | I37: 486 | J37: 15.68 | K37: =I37/14.55 -> 33.40 | L37: 34 | M37: 12 | N37: 2.58 | O37: =M37*2.34 -> 28.08 | P37: 29 | Q37: 单项超；含博艺3；含老谢庄3
A38: 31 | B38: 唐山市路南区郑家庄小学 | C38: 26 | D38: 23 | E38: 8 | F38: 2 | H38: 33 | I38: 493 | J38: 14.94 | K38: 33.88 | L38: 34 | M38: 14 | N38: 2.36 | O38: 32.76 | P38: 33 | Q38: 单项超；含博艺2；含西礼6
A39: 32 | B39: 唐山市女织寨小学 | C39: 14 | D39: 13 | F39: 1 | H39: 14 | I39: 157 | J39: 11.21 | K39: 10.79 | L39: 11 | M39: 6 | N39: 2.33 | O39: 14.04 | P39: 15 | Q39: 单项超
A40: 33 | B40: 唐山市路南区稻地镇边庄子小学 | C40: 12 | D40: 12 | F40: 3 | G40: 2 | H40: 17 | I40: 228 | J40: 13.41 | K40: 15.67 | L40: 16 | M40: 7 | N40: 2.43 | O40: 16.38 | P40: 17 | Q40: 单项超
A41: 34 | B41: 唐山市路南区稻地镇刘唐保小学 | C41: 12 | D41: 11 | F41: 2 | G41: 8 | H41: 21 | I41: 276 | J41: 13.14 | K41: 18.97 | L41: 19 | M41: 9 | N41: 2.33 | O41: 21.06 | P41: 22 | Q41: 单项超
A42: 35 | B42: 唐山市路南区稻地镇稻地小学 | C42: 25 | D42: 24 | F42: 5 | G42: 15 | H42: 44 | I42: 719 | J42: 16.34 | K42: 49.42 | L42: 50 | M42: 19 | N42: 2.32 | O42: 44.46 | P42: 45
A43: 36 | B43: 唐山市路南区稻地镇第二小学 | C43: 12 | D43: 10 | G43: 1 | H43: 11 | I43: 130 | J43: 11.82 | K43: 8.93 | L43: 9 | M43: 6 | N43: 1.83 | O43: 14.04 | P43: 15 | Q43: 单项超
A44: 37 | B44: 唐山市路南区稻地镇范庄小学 | C44: 10 | D44: 9 | G44: 1 | H44: 10 | I44: 186 | J44: 18.60 | K44: 12.78 | L44: 13 | M44: 6 | N44: 1.67 | O44: 14.04 | P44: 15
B45: 农村学校（不含中学） | C45: =SUM(C36:C44) -> 167 | D45: =SUM(D36:D44) -> 155 | F45: 17 | G45: 27 | H45: =SUM(H36:H44) -> 213 | I45: 3100 | J45: 14.55 | M45: =SUM(M36:M44) -> 91 | N45: 2.34
A83: 38 | B83: 唐山市第二十六中学分校 | C83: 4 | D83: 4 | H83: =D83+F83+G83 -> 4 | I83: 0 | J83: =I83/H83 -> 0.00 | M83: 0
A84: 39 | B84: 唐山市第三十九中学 | C84: 29 | D84: 29 | F84: 1 | H84: 30 | I84: 0 | J84: 0.00 | M84: 0
B85: 二中实验学校（39中） | C85: 20 | D85: 17 | H85: 17 | J85: 0.00
A86: 40 | B86: 唐山市路南区成人教育学校 | C86: 33 | D86: 32 | F86: 1 | H86: 33 | J86: 0.00
A87: 41 | B87: 唐山市路南区教师进修学校 | C87: 21 | D87: 20 | F87: 1 | H87: 21 | I87: 0 | J87: 0.00 | M87: 0
A88: 42 | B88: 唐山市路南区中小学劳动教育中心 | C88: 20 | D88: 19 | F88: 1 | H88: 20 | I88: 0 | J88: 0.00 | M88: 0
A89: 43 | B89: 唐山市路南区培智学校 | C89: 22 | D89: 19 | H89: 19 | I89: 73 | J89: 3.84 | M89: 8 | N89: =H89/M89 -> 2.38
A90: 44 | B90: 唐山市路南区菜市小学校 | C90: 13 | D90: 12 | H90: 12 | I90: 0 | J90: 0.00 | M90: 0
A91: 45 | B91: 唐山市路南区铁路第二小学 | C91: 15 | D91: 14 | H91: 14 | I91: 0 | J91: 0.00 | M91: 0
A92: 46 | B92: 唐山市路南区新华楼小学 | C92: 27 | D92: 16 | H92: 16 | I92: 0 | J92: 0.00 | M92: 0
A93: 47 | B93: 唐山市路南区博艺幼儿园 | C93: 9 | D93: 9 | F93: 1 | H93: 10 | I93: 0 | J93: 0.00 | M93: 0
A94: 48 | B94: 唐山市西礼小学 | C94: 16 | D94: 15 | H94: 15 | I94: 0 | J94: 0.00 | M94: 0
A95: 49 | B95: 唐山市路南区女织寨乡教育组 | C95: 6 | D95: 6 | H95: 6 | I95: 0 | J95: 0.00 | M95: 0
A96: 50 | B96: 唐山市路南区稻地镇中心校 | C96: 7 | D96: 7 | H96: 7 | I96: 0 | J96: 0.00 | M96: 0
A97: 51 | B97: 稻地镇成人学校 | C97: 6 | D97: 6 | H97: 6 | I97: 0 | J97: 0.00 | M97: 0

Sheet 中学（55女） (hidden)
A1: 教育系统空编情况摸底
L2: 2019.12
A3: 单位名称 | B3: 南机编办201957号 | C3: 19年11月底在编数 | D3: 12月退休 | E3: 调动 | F3: 19年底空编数 | G3: 1月退休 | H3: 2月退休 | I3: 3月退休 | J3: 调动 | K3: 20年3月底空编数 | L3: 20年4-9月退休数 | M3: 20年9月底空编数
A4: 唐山市第四中学校 | B4: 103 | C4: 100 | F4: =B4-C4+D4-E4 -> 3 | G4: 1 | K4: =F4+G4+H4+I4+J4 -> 4 | M4: =K4+L4 -> 4
A5: 唐山市第五中学 | B5: 113 | C5: 110 | F5: =B5-C5+D5-E5 -> 3 | K5: =F5+G5+H5+I5+J5 -> 3 | L5: 1 | M5: =K5+L5 -> 4
A6: 唐山市第九中学 | B6: 186 | C6: 185 | F6: 1 | K6: 1 | L6: 1 | M6: 2
A7: 唐山市路南区职业技术学校 | B7: 57 | C7: 53 | F7: 4 | K7: 4 | M7: 4
A8: 唐山市第二十六中学 | B8: 165 | C8: 162 | F8: 3 | I8: 1 | K8: 4 | L8: 4 | M8: 8
A9: 唐山市第二十六中学分校 | B9: 4 | C9: 4 | F9: 0 | K9: 0 | M9: 0
A10: 唐山市开滦第十中学 | B10: 125 | C10: 121 | F10: 4 | G10: 1 | K10: 5 | L10: 4 | M10: 9
A11: 唐山市第三十九中学 | B11: 29 | C11: 29 | F11: 0 | K11: 0 | L11: 1 | M11: 1
A12: 二中实验学校（39中） | B12: 20 | C12: 16 | F12: 4 | J12: -1 | K12: 3 | M12: 3
A13: 唐山市友谊中学 | B13: 139 | C13: 137 | E13: -1 | F13: 3 | G13: 1 | K13: 4 | L13: 2 | M13: 6
A14: 唐山市路南区稻地镇中学 | B14: 63 | C14: 62 | F14: 1 | K14: 1 | M14: 1
A15: 合计 | B15: =SUM(B4:B13) -> 941 | C15: =SUM(C4:C13) -> 917 | F15: =SUM(F4:F14) -> 26 | G15: =SUM(G4:G13) -> 3 | H15: =SUM(H4:H13) -> 0 | I15: =SUM(I4:I13) -> 1 | K15: =SUM(K4:K14) -> 29 | L15: =SUM(L4:L13) -> 13 | M15: =SUM(M4:M14) -> 42

Sheet 中学 (60女) (hidden)
A1: 教育系统空编情况摸底
J2: 2019.12
A3: 单位名称 | B3: 南机编办201957号 | C3: 19年11月底在编数 | D3: 12月退休 | E3: 调动 | F3: 19年底空编数 | G3: 1-3月退休 | H3: 调动 | I3: 20年3月底空编数 | J3: 20年4-9月退休数 | K3: 20年9月底空编数
A4: 唐山市第四中学校 | B4: 103 | C4: 100 | F4: =B4-C4+D4-E4 -> 3 | G4: 1 | I4: =F4+G4+H4 -> 4 | K4: =I4+J4 -> 4
A5: 唐山市第五中学 | B5: 113 | C5: 110 | F5: =B5-C5+D5-E5 -> 3 | I5: =F5+G5+H5 -> 3 | K5: =I5+J5 -> 3
A6: 唐山市第九中学 | B6: 186 | C6: 185 | F6: 1 | I6: 1 | J6: 1 | K6: 2
A7: 唐山市路南区职业技术学校 | B7: 57 | C7: 53 | F7: 4 | I7: 4 | K7: 4
A8: 唐山市第二十六中学 | B8: 165 | C8: 162 | F8: 3 | I8: 3 | K8: 3
A9: 唐山市第二十六中学分校 | B9: 4 | C9: 4 | F9: 0 | I9: 0 | K9: 0
A10: 唐山市开滦第十中学 | B10: 125 | C10: 121 | F10: 4 | I10: 4 | J10: 1 | K10: 5
A11: 唐山市第三十九中学 | B11: 29 | C11: 29 | F11: 0 | I11: 0 | K11: 0
A12: 二中实验学校（39中） | B12: 20 | C12: 16 | F12: 4 | H12: -1 | I12: 3 | K12: 3
A13: 唐山市友谊中学 | B13: 139 | C13: 137 | E13: -1 | F13: 3 | I13: 3 | K13: 3
A14: 唐山市路南区稻地镇中学 | B14: 63 | C14: 62 | F14: 1 | K14: =F14+G14+H14+I14+J14 -> 1
A15: 合计 | B15: =SUM(B4:B14) -> 1004 | C15: =SUM(C4:C14) -> 979 | F15: =SUM(F4:F14) -> 26 | I15: =SUM(I4:I14) -> 25 | K15: =SUM(K4:K14) -> 28

Sheet 2021招聘后年底空编数0316 (hidden)
A1: 路南教育系统2021年底空编情况摸底
F2: 3.16
A3: 单位名称 | B3: 核定编制数南机编办201957号 | C3: 目前在编数（0519） | D3: 3-12月退休将要销编数 | E3: 招聘数 | F3: 选聘数 | G3: 2021年12月底空编数 | H3: 3月底 | I3: 12月底
A4: 唐山市第五中学 | B4: 113 | C4: 112 | D4: 1 | G4: =B4-C4+D4-E4-F4 -> 2 | H4: 1 | I4: 2
A5: 唐山市路南区职业技术学校 | B5: 57 | C5: 52 | G5: =B5-C5+D5-E5-F5 -> 5
A6: 唐山市第四中学校 | B6: 103 | C6: 96 | D6: 1 | F6: 6 | G6: 2 | H6: 1 | I6: 2
A7: 唐山市第九中学 | B7: 186 | C7: 185 | D7: 1 | F7: 1 | G7: 1 | H7: 1 | I7: 2
A8: 唐山市开滦第十中学 | B8: 125 | C8: 119 | F8: 5 | G8: 1 | H8: 0
A9: 唐山市友谊中学 | B9: 139 | C9: 137 | F9: 1 | G9: 1 | H9: 1
A10: 唐山市第二十六中学 | B10: 165 | C10: 158 | D10: 1 | F10: 3 | G10: 5 | H10: 3 | I10: 3
A11: 唐山市第二十六中学分校 | B11: 4 | C11: 4 | G11: 0
A12: 唐山市第三十九中学 | B12: 29 | C12: 29 | G12: 0
A13: 唐山市路南区稻地镇中学 | B13: 63 | C13: 61 | D13: 1 | G13: 3
A14: 二中实验学校（39中） | B14: 20 | C14: 17 | G14: 3
A15: 初中合计 | B15: =SUM(B6:B14) -> 834 | C15: =SUM(C6:C14) -> 806 | D15: =SUM(D6:D14) -> 4 | E15: 0 | F15: 16 | G15: 16
A16: 唐山市路南区成人教育学校 | B16: 33 | C16: 31 | D16: 1 | G16: 3
A17: 唐山市路南区教师进修学校 | B17: 21 | C17: 20 | G17: 1
A18: 唐山市路南区中小学劳动教育中心 | B18: 20 | C18: 19 | D18: 1 | G18: 2
A19: 唐山市路南区培智学校 | B19: 22 | C19: 19 | D19: 2 | E19: 3 | G19: 2
A20: 唐山市路南区文北小学 | B20: 60 | C20: 56 | E20: 4 | G20: 0
A21: 唐山市路南区联合村小学校 | B21: 34 | C21: 31 | E21: 3 | G21: 0
A22: 唐山市路南区菜市小学校 | B22: 13 | C22: 12 | E22: 1 | G22: 0
A23: 唐山市路南区胜利路小学校 | B23: 29 | C23: 26 | E23: 2 | G23: 1
A24: 唐山市路南区东新街小学校 | B24: 30 | C24: 29 | D24: 1 | E24: 1 | G24: 1
A25: 唐山市路南区福庄小学 | B25: 18 | C25: 18 | G25: 0
A26: 唐山市路南区铁路第二小学 | B26: 15 | C26: 14 | D26: 1 | E26: 1 | G26: 1
A27: 唐山市路南区南厂小学 | B27: 34 | C27: 31 | E27: 3 | G27: 0
A28: 唐山市路南区万达小学 | B28: 41 | C28: 39 | F28: 1 | G28: 1
A29: 唐山市路南区实验小学 | B29: 83 | C29: 79 | D29: 3 | F29: 3 | G29: 4
A30: 唐山市路南区双新小学 | B30: 39 | C30: 37 | D30: 2 | F30: 1 | G30: 3
A31: 唐山市路南区新华楼小学 | B31: 27 | C31: 17 | G31: 10
A32: 唐山市路南区新华西道小学 | B32: 35 | C32: 34 | F32: 1 | G32: 0
A33: 唐山市路南区友谊里小学 | B33: 49 | C33: 49 | D33: 1 | G33: 1
A34: 唐山市路南区燕京小学 | B34: 61 | C34: 61 | G34: 0
A35: 唐山市雷锋小学 | B35: 39 | C35: 39 | D35: 1 | F35: 1 | G35: 0
A36: 唐山市路南区第二实验小学 | B36: 69 | C36: 64 | E36: 1 | F36: 3 | G36: 1
A37: 唐山市路南区实验小学南湖分校 | B37: 47 | C37: 40 | D37: 4 | F37: 3 | G37: 8
A38: 唐山市路南区南湖小学 | B38: 50 | C38: 44 | D38: 1 | E38: 2 | F38: 3 | G38: 2
A39: 市区小学合计 | B39: =SUM(B20:B38) -> 773 | C39: =SUM(C20:C38) -> 720 | D39: =SUM(D20:D38) -> 14 | E39: 18 | F39: 16 | G39: 33
A40: 唐山市第二幼儿园 | B40: 41 | C40: 40 | D40: 1 | E40: 1 | G40: 1
A41: 唐山市第三幼儿园 | B41: 19 | C41: 18 | G41: 1
A42: 唐山市路南区博艺幼儿园 | B42: 9 | C42: 9 | D42: 1 | G42: 1
A43: 市区幼儿园 | B43: =SUM(B40:B42) -> 69 | C43: =SUM(C40:C42) -> 67 | D43: =SUM(D40:D42) -> 2 | E43: 1 | F43: 0 | G43: 3
A44: 唐山市侯边庄小学 | B44: 30 | C44: 29 | D44: 1 | E44: 1 | G44: 1
A45: 唐山市老谢庄小学 | B45: 26 | C45: 24 | E45: 2 | G45: 0
A46: 唐山市路南区郑家庄小学 | B46: 26 | C46: 23 | D46: 1 | G46: 4
A47: 唐山市女织寨小学 | B47: 14 | C47: 13 | G47: 1
A48: 唐山市西礼小学 | B48: 16 | C48: 14 | D48: 1 | E48: 1 | G48: 2
A49: 唐山市路南区女织寨乡教育组 | B49: 6 | C49: 6 | G49: 0
A50: 唐山市路南区稻地镇边庄子小学 | B50: 12 | C50: 11 | D50: 1 | G50: 2
A51: 唐山市路南区稻地镇刘唐保小学 | B51: 12 | C51: 11 | D51: 1 | E51: 1 | G51: 1
A52: 唐山市路南区稻地镇稻地小学 | B52: 25 | C52: 22 | E52: 1 | G52: 2
A53: 唐山市路南区稻地镇第二小学 | B53: 12 | C53: 10 | D53: 2 | E53: 1 | G53: 3
A54: 唐山市路南区稻地镇范庄小学 | B54: 10 | C54: 8 | E54: 1 | G54: 1
A55: 唐山市路南区稻地中心幼儿园 | B55: 7 | C55: 7 | G55: 0
A56: 唐山市路南区稻地镇刘唐保幼儿园 | B56: 7 | C56: 7 | G56: 0
A57: 唐山市路南区稻地镇中心校 | B57: 7 | C57: 7 | G57: 0
A58: 稻地镇成人学校 | B58: 6 | C58: 6 | G58: 0
A59: 农村学校（不含中学） | B59: =SUM(B44:B58) -> 216 | C59: =SUM(C44:C58) -> 198 | D59: =SUM(D44:D58) -> 7 | E59: 8 | F59: 0 | G59: 17
A60: 合计 | B60: =B4+B5+B15+B16+B17+B18+B19+B39+B43+B59 -> 2158 | C60: =C59+C43+C39+C19+C18+C17+C16+C15+C5+C4 -> 2044 | D60: =D59+D43+D39+D19+D18+D17+D16+D15+D5+D4 -> 32 | E60: 30 | F60: 32 | G60: 84

Sheet 教育系统在岗情况0329 (hidden)
A1: 教育系统在岗情况
A3: 单位名称 | B3: 在编数 | C3: 人事代理 | D3: 稻地聘用制 | E3: 劳务派遣 | F3: 借入 | G3: 借出 | H3: 其他不在岗（病产离） | I3: 在岗数
A4: 唐山市第五中学 | B4: 112 | C4: 12 | G4: 11 | H4: 2 | I4: =B4+C4+D4+E4+F4-G4-H4 -> 111
A5: 唐山市路南区职业技术学校 | B5: 52 | C5: 2 | F5: 1 | G5: 2 | H5: 6 | I5: =B5+C5+D5+E5+F5-G5-H5 -> 47
A6: 唐山市第四中学校 | B6: 96 | C6: 5 | G6: 8 | H6: 1 | I6: 92
A7: 唐山市第九中学 | B7: 184 | C7: 23 | F7: 2 | G7: 3 | H7: 8 | I7: 198
A8: 唐山市开滦第十中学 | B8: 119 | C8: 18 | F8: 24 | G8: 4 | H8: 2 | I8: 155
A9: 唐山市友谊中学 | B9: 137 | C9: 23 | F9: 4 | G9: 1 | H9: 6 | I9: 157
A10: 唐山市第二十六中学 | B10: 160 | C10: 15 | F10: 3 | G10: 8 | H10: 5 | I10: 165
A11: 唐山市第二十六中学分校 | B11: 4 | G11: 4 | I11: 0
A12: 唐山市第三十九中学 | B12: 29 | C12: 1 | G12: 23 | I12: 7
A13: 唐山市路南区稻地镇中学 | B13: 62 | C13: 1 | D13: 5 | G13: 2 | I13: 66
A14: 二中实验学校（39中） | B14: 17 | I14: 17
A15: 初中合计 | B15: =SUM(B6:B14) -> 808 | C15: =SUM(C6:C14) -> 86 | D15: 5 | E15: 0 | I15: 899
A16: 唐山市路南区成人教育学校 | B16: 32 | C16: 1 | F16: 4 | I16: 37
A17: 唐山市路南区教师进修学校 | B17: 20 | C17: 1 | F17: 6 | G17: 3 | I17: 24
A18: 唐山市路南区中小学劳动教育中心 | B18: 19 | C18: 1 | I18: 20
A19: 唐山市路南区培智学校 | B19: 19 | G19: 1 | I19: 18
A20: 唐山市路南区文北小学 | B20: 56 | C20: 3 | G20: 2 | I20: 57
A21: 唐山市路南区联合村小学校 | B21: 31 | C21: 2 | H21: 2 | I21: 31
A22: 唐山市路南区菜市小学校 | B22: 12 | G22: 12 | I22: 0
A23: 唐山市路南区胜利路小学校 | B23: 27 | C23: 2 | F23: 9 | G23: 1 | I23: 37
A24: 唐山市路南区东新街小学校 | B24: 29 | C24: 3 | G24: 1 | H24: 1 | I24: 30
A25: 唐山市路南区福庄小学 | B25: 18 | C25: 2 | F25: 10 | H25: 1 | I25: 29
A26: 唐山市路南区铁路第二小学 | B26: 14 | G26: 12 | H26: 2 | I26: 0
A27: 唐山市路南区南厂小学 | B27: 31 | C27: 1 | G27: 2 | H27: 5 | I27: 25
A28: 唐山市路南区万达小学 | B28: 39 | C28: 3 | F28: 1 | H28: 1 | I28: 42
A29: 唐山市路南区实验小学 | B29: 80 | C29: 6 | F29: 16 | G29: 1 | H29: 3 | I29: 98
A30: 唐山市路南区双新小学 | B30: 38 | C30: 3 | D30: 0 | F30: 1 | G30: 3 | H30: 2 | I30: 37
A31: 唐山市路南区新华楼小学 | B31: 16 | G31: 14 | H31: 2 | I31: 0
A32: 唐山市路南区新华西道小学 | B32: 34 | C32: 3 | G32: 3 | H32: 3 | I32: 31
A33: 唐山市路南区友谊里小学 | B33: 49 | C33: 4 | F33: 2 | I33: 55
A34: 唐山市路南区燕京小学 | B34: 61 | C34: 3 | F34: 1 | G34: 2 | H34: 2 | I34: 61
A35: 唐山市雷锋小学 | B35: 39 | C35: 3 | G35: 3 | H35: 1 | I35: 38
A36: 唐山市路南区第二实验小学 | B36: 64 | C36: 5 | F36: 2 | G36: 2 | I36: 69
A37: 唐山市路南区实验小学南湖分校 | B37: 42 | C37: 1 | G37: 1 | I37: 42
A38: 唐山市路南区南湖小学 | B38: 44 | C38: 3 | G38: 3 | H38: 1 | I38: 43
A39: 市区小学合计 | B39: =SUM(B20:B38) -> 724 | C39: 47 | D39: 0 | E39: 0 | I39: 771
A40: 唐山市第二幼儿园 | B40: 39 | C40: 5 | F40: 1 | G40: 1 | H40: 2 | I40: 42
A41: 唐山市第三幼儿园 | B41: 18 | C41: 0 | F41: 1 | G41: 2 | I41: 17
A42: 唐山市路南区博艺幼儿园 | B42: 9 | C42: 1 | G42: 7 | H42: 1 | I42: 2
A43: 市区幼儿园 | B43: =SUM(B40:B42) -> 66 | C43: =SUM(C40:C42) -> 6 | E43: =SUM(E40:E42) -> 0 | I43: 72
A44: 唐山市侯边庄小学 | B44: 29 | C44: 3 | I44: 32
A45: 唐山市老谢庄小学 | B45: 24 | C45: 1 | F45: 6 | H45: 2 | I45: 29
A46: 唐山市路南区郑家庄小学 | B46: 23 | C46: 2 | F46: 8 | G46: 2 | H46: 1 | I46: 30
A47: 唐山市女织寨小学 | B47: 13 | C47: 1 | I47: 14
A48: 唐山市西礼小学 | B48: 15 | G48: 12 | I48: 3
A49: 唐山市路南区女织寨乡教育组 | B49: 6 | F49: 5 | I49: 11
A50: 唐山市路南区稻地镇边庄子小学 | B50: 12 | C50: 3 | D50: 2 | E50: 5 | F50: 1 | G50: 3 | I50: 20
A51: 唐山市路南区稻地镇刘唐保小学 | B51: 11 | C51: 2 | D51: 8 | G51: 3 | H51: 1 | I51: 17
A52: 唐山市路南区稻地镇稻地小学 | B52: 23 | C52: 5 | D52: 15 | G52: 6 | H52: 1 | I52: 36
A53: 唐山市路南区稻地镇第二小学 | B53: 10 | D53: 1 | E53: 3 | I53: 14
A54: 唐山市路南区稻地镇范庄小学 | B54: 8 | D54: 1 | E54: 4 | G54: 1 | I54: 12
A55: 唐山市路南区稻地中心幼儿园 | B55: 7 | E55: 6 | I55: 13
A56: 唐山市路南区稻地镇刘唐保幼儿园 | B56: 7 | D56: 1 | E56: 9 | I56: 17
A57: 唐山市路南区稻地镇中心校 | B57: 7 | F57: 3 | I57: 10
A58: 稻地镇成人学校 | B58: 6 | I58: 6
A59: 农村学校（不含中学） | B59: =SUM(B44:B58) -> 201 | C59: =SUM(C44:C58) -> 17 | D59: 28 | E59: 27 | I59: 273
A60: 合计 | B60: =B59+B43+B39+B19+B18+B17+B16+B15+B5+B4 -> 2053 | C60: 173 | D60: 33 | E60: 27 | I60: 2286

Sheet Sheet1 (hidden)
A1: 单位名称 | B1: 南机编办201957号 | C1: 在编数 | G1: 备注：统计范围为幼儿园、义务教育、高中、中职、特教教师编制人数。
A2: 唐山市第五中学 | B2: 113 | C2: 112
A3: 唐山市路南区职业技术学校 | B3: 57 | C3: 52
A4: 唐山市第四中学校 | B4: 103 | C4: 96
A5: 唐山市第九中学 | B5: 186 | C5: 185
A6: 唐山市开滦第十中学 | B6: 125 | C6: 119
A7: 唐山市友谊中学 | B7: 139 | C7: 137
A8: 唐山市第二十六中学 | B8: 165 | C8: 160
A9: 唐山市第二十六中学分校 | B9: 4 | C9: 4
A10: 唐山市第三十九中学 | B10: 29 | C10: 29
A11: 唐山市路南区稻地镇中学 | B11: 63 | C11: 62
A12: 二中实验学校（39中） | B12: 20 | C12: 17
A13: 初中合计 | B13: =SUM(B4:B12) -> 834 | C13: =SUM(C4:C12) -> 809
A14: 唐山市路南区成人教育学校
A15: 唐山市路南区教师进修学校
A16: 唐山市路南区中小学劳动教育中心
A17: 唐山市路南区培智学校 | B17: 22 | C17: 19
A18: 唐山市路南区文北小学 | B18: 60 | C18: 56
A19: 唐山市路南区联合村小学校 | B19: 34 | C19: 31
A20: 唐山市路南区菜市小学校 | B20: 13 | C20: 12
A21: 唐山市路南区胜利路小学校 | B21: 29 | C21: 26
A22: 唐山市路南区东新街小学校 | B22: 30 | C22: 29
A23: 唐山市路南区福庄小学 | B23: 18 | C23: 18
A24: 唐山市路南区铁路第二小学 | B24: 15 | C24: 14
A25: 唐山市路南区南厂小学 | B25: 34 | C25: 31
A26: 唐山市路南区万达小学 | B26: 41 | C26: 39
A27: 唐山市路南区实验小学 | B27: 83 | C27: 80
A28: 唐山市路南区双新小学 | B28: 39 | C28: 38
A29: 唐山市路南区新华楼小学 | B29: 27 | C29: 17
A30: 唐山市路南区新华西道小学 | B30: 35 | C30: 34
A31: 唐山市路南区友谊里小学 | B31: 49 | C31: 49
A32: 唐山市路南区燕京小学 | B32: 61 | C32: 61
A33: 唐山市雷锋小学 | B33: 39 | C33: 39
A34: 唐山市路南区第二实验小学 | B34: 69 | C34: 64
A35: 唐山市路南区实验小学南湖分校 | B35: 47 | C35: 41
A36: 唐山市路南区南湖小学 | B36: 50 | C36: 44
A37: 市区小学合计 | B37: =SUM(B18:B36) -> 773 | C37: =SUM(C18:C36) -> 723
A38: 唐山市第二幼儿园 | B38: 41 | C38: 39
A39: 唐山市第三幼儿园 | B39: 19 | C39: 18
A40: 唐山市路南区博艺幼儿园 | B40: 9 | C40: 9
A41: 市区幼儿园 | B41: =SUM(B38:B40) -> 69 | C41: =SUM(C38:C40) -> 66
A42: 唐山市侯边庄小学 | B42: 30 | C42: 29
A43: 唐山市老谢庄小学 | B43: 26 | C43: 24
A44: 唐山市路南区郑家庄小学 | B44: 26 | C44: 23
A45: 唐山市女织寨小学 | B45: 14 | C45: 13
A46: 唐山市西礼小学 | B46: 16 | C46: 14
A47: 唐山市路南区女织寨乡教育组
A48: 唐山市路南区稻地镇边庄子小学 | B48: 12 | C48: 12
A49: 唐山市路南区稻地镇刘唐保小学 | B49: 12 | C49: 11
A50: 唐山市路南区稻地镇稻地小学 | B50: 25 | C50: 22
A51: 唐山市路南区稻地镇第二小学 | B51: 12 | C51: 10
A52: 唐山市路南区稻地镇范庄小学 | B52: 10 | C52: 8
A53: 唐山市路南区稻地中心幼儿园 | B53: 7 | C53: 7
A54: 唐山市路南区稻地镇刘唐保幼儿园 | B54: 7 | C54: 7
A55: 唐山市路南区稻地镇中心校
A56: 稻地镇成人学校
A57: 农村学校（不含中学） | B57: =SUM(B42:B56) -> 197 | C57: =SUM(C42:C56) -> 180
A58: 合计 | B58: =B2+B3+B13+B14+B15+B16+B17+B37+B41+B57 -> 2065 | C58: =C57+C41+C37+C17+C16+C15+C14+C13+C3+C2 -> 1961
